Cogmind - Beta 13 @@@ ROGUE MODE // 2024.03.10 @ 09:48:41 Player: f3-rnm Result: Core destroyed Performance ------------- Evolutions (6) 3000 Regions Visited (13) 2600 Robots Destroyed (223) 1115 Value Destroyed (7376) 7376 Prototype IDs (36) 720 Alien Tech Used (0) 0 Bonus (841) 841 TOTAL SCORE: 15652 Bonus ------- High Alert Combat Kills 208 Follower Combat Kills 513 Met Data Miner 300 Friendly Fire -180 Cogmind --------- Core Integrity 0/1150 Matter 12/300 Energy 75/100 System Corruption 3% Temperature Cool (0) Movement Core (50) Location -4/Extension Parts ------- > --- POWER (2) -------- (None) > --- PROPULSION (6) --- (None) > --- UTILITY (8) ------ Improved Focal Shield > --- WEAPON (3) ------- (None) > --- INVENTORY (5) ---- Medium Storage Unit Heavy Gauss Cannon Great Axe Peak State ------------ > --- POWER ------------ Light Ion Engine > --- PROPULSION ------- Cooled Gravmag System Nuclear Pulse Array Impulse Thruster Impulse Thruster Impulse Thruster > --- UTILITY ---------- Improved Heat Sink Medium Storage Unit Transport Network Coupler Targeting Computer Improved Target Analyzer Graphene Brace Advanced System Shield > --- WEAPON ----------- Heavy Gatling Laser Precision Rocket Launcher Plasma Sword > --- INVENTORY -------- Medium Treads Centrium Wheel Centrium Wheel Impulse Thruster Improved Focal Shield Heavy Gauss Cannon Heavy Gauss Cannon Heavy Gauss Cannon Great Axe [Rating: 90] Favorites ----------- Power Ion Engine Engine Ion Engine Power Core Light Nuclear Core Propulsion Advanced Treads Treads Advanced Treads Leg Arachnoskeleton Wheel Wheel Hover Unit Antigrav System Flight Unit Impulse Thruster Utility Advanced Heat Sink Device Advanced Heat Sink Storage Huge Storage Unit Processor Transport Network Coupler Hackware Improved Hacking Suite Protection Layered Medium Armor Plating Weapon Advanced Assault Cannon Energy Gun Gatling Laser Energy Cannon Neutron Cannon Ballistic Gun Enhanced Autogun Ballistic Cannon Advanced Assault Cannon Launcher Rocket Launcher Impact Weapon Makeshift Hammer Slashing Weapon Greatsword Build | -11 -10 -10 -8 -8 -7 -6 -6 -6 -6 -5 -5 -4 -4 ------- Run | Yrd Mat Sub Mat Sto Fac Fac Low Low Dat Pro Fac Fac Ext Slots Evolved 12 | . . . 4 . 2 2 . . . . 2 2 . Power 1 | . . . . . 1 . . . . . . . . Propulsion 4 | . . . 2 . . . . . . . . 2 . Utility 6 | . . . 2 . 1 1 . . . . 2 . . Weapon 1 | . . . . . . 1 . . . . . . . Parts Attached 267 | 5 5 11 17 32 25 21 18 . 2 19 73 35 4 Power 30 | 1 1 . 1 7 3 4 1 . . . 7 4 1 Engine 18 | 1 1 . 1 6 2 1 1 . . . 3 2 . Core 12 | . . . . 1 1 3 . . . . 4 2 1 Reactor . | . . . . . . . . . . . . . . Propulsion 67 | 2 . 3 3 4 11 4 3 . . 6 17 14 . Treads 31 | 2 . 3 2 1 9 4 3 . . 5 1 1 . Leg 15 | . . . 1 3 2 . . . . 1 8 . . Wheel 7 | . . . . . . . . . . . 4 3 . Hover 7 | . . . . . . . . . . . 4 3 . Flight 7 | . . . . . . . . . . . . 7 . Utility 68 | . 4 1 5 3 5 6 6 . . 7 22 7 2 Device 30 | . . . 2 1 2 3 2 . . 3 12 4 1 Storage 9 | . 3 . 1 . . . . . . 2 1 1 1 Processor 7 | . 1 . 1 . 2 . . . . . 2 1 . Hackware 3 | . . . . . . . . . . . 2 1 . Protection 19 | . . 1 1 2 1 3 4 . . 2 5 . . Artifact . | . . . . . . . . . . . . . . Weapon 102 | 2 . 7 8 18 6 7 8 . 2 6 27 10 1 Energy Gun 17 | . . 1 1 1 1 3 3 . . 1 3 3 . Energy Cannon 7 | . . . 2 1 1 . . . . 1 2 . . Ballistic Gun 28 | 2 . . . 10 1 . . . . 1 11 3 . Ballistic Cannon 26 | . . 4 3 . 3 2 3 . 2 2 4 2 1 Launcher 10 | . . 1 1 2 . 1 2 . . 1 . 2 . Special Weapon . | . . . . . . . . . . . . . . Impact Weapon 7 | . . 1 1 4 . 1 . . . . . . . Slashing Weapon 7 | . . . . . . . . . . . 7 . . Piercing Weapon . | . . . . . . . . . . . . . . Special Melee Weapon . | . . . . . . . . . . . . . . Unidentified Prototypes 15 | . . . 1 7 . 1 1 . . 1 2 2 . Corrupted Parts 3 | . . . . . . . . . . 3 . . . System Corruption 22 | . . . . . . . . . . 22 . . . Parts Lost 113 | . . 8 8 3 5 3 9 . . 11 48 16 2 Power 19 | . . 1 1 2 2 2 1 . . 2 4 3 1 Propulsion 37 | . . 3 3 . . 1 3 . . 4 14 8 1 Utility 31 | . . 1 1 . 2 . 4 . . 3 17 3 . Weapon 26 | . . 3 3 1 1 . 1 . . 2 13 2 . Highest Loss Streak 16 | . . 4 6 2 3 1 3 . . 5 16 9 3 To Critical Strikes . | . . . . . . . . . . . . . . Average Slot Usage (%) 77 | . 96 77 62 62 89 97 92 93 81 63 65 55 11 Engine 6 | . 14 8 5 6 11 . 9 13 13 1 1 . . Core 1 | . . . . . . 11 3 . . . 2 2 2 Treads 17 | . 28 22 16 4 10 26 25 26 26 16 4 . . Leg 3 | . . . 2 8 19 . . . . 1 7 . . Device 10 | . . . 8 7 7 19 19 20 20 13 13 9 3 Storage 7 | . 13 7 7 7 6 6 6 6 6 7 6 . 2 Processor 5 | . 10 7 7 7 11 6 1 . . . 2 11 . Protection 5 | . . . 3 6 6 5 9 13 13 9 2 . . Energy Gun 1 | . . 1 . . . 4 3 . . . . 1 . Ballistic Gun 5 | . 28 . . 12 10 . . . . 1 5 4 . Ballistic Cannon 6 | . . 17 1 . . 12 5 13 1 8 1 . 1 Impact Weapon 1 | . . 3 7 . . . 3 . . . . . . Naked Turns 36 | . . . . . . . . . . 14 . 21 1 Heaviest Build 138 | 8 28 31 99 102 110 126 138 138 138 138 137 27 2 Greatest Support 119 | 40 40 40 66 101 119 112 94 94 94 94 80 34 3 Greatest Overweight (x) 38 | . . 2 2 2 1 1 1 1 1 38 38 1 . Average Overweight (x) . | . . . . 1 . . 1 1 1 . . . . Largest Inventory Capacity 25 | 5 15 15 25 25 25 25 25 25 25 25 25 10 10 Average Capacity 20 | 5 11 10 23 25 25 25 25 25 25 23 17 5 7 Most Carried 25 | 4 14 13 21 25 25 25 25 25 25 25 25 10 5 Average Carried 18 | 2 9 8 13 21 24 24 24 25 25 21 16 5 2 Final Capacity 25 | 5 15 5 25 25 25 25 25 25 25 25 5 5 5 Final Carried 25 | 3 13 5 21 25 25 25 25 25 25 24 5 5 3 Class Distribution -------------------- 50% | Mutant 21% | Scavenger-Mutant 15% | Scavenger-Tank 9% | Tank Dominant Class ---------------- Mutant | -10/Materials Mutant | -10/Subcaves Scavenger-Mutant | -8/Materials Mutant | -8/Storage Scavenger-Mutant | -7/Factory Mutant | -6/Factory Scavenger-Tank | -6/Lower Caves Scavenger-Tank | -6/Lower Caves Scavenger-Mutant | -6/Data Miner Tank | -5/Proximity Caves Scavenger-Mutant | -5/Factory Scavenger-Mutant | -4/Factory Scavenger-Mutant | -4/Extension Resources | -11 -10 -10 -8 -8 -7 -6 -6 -6 -6 -5 -5 -4 -4 ----------- Run | Yrd Mat Sub Mat Sto Fac Fac Low Low Dat Pro Fac Fac Ext Matter Collected 6843 | 258 250 473 597 723 674 527 748 74 . 796 1332 391 . Remotely 603 | . . . . . . . . . . . 603 . . Salvage Created 7501 | 98 401 309 830 956 818 597 481 56 . 275 1954 726 . Parts 414 | 5 34 33 20 68 61 26 19 2 . 2 99 45 . Haulers Intercepted 15 | . 2 . 3 4 . . 1 . . . 3 2 . Recyclers Shooed 9 | . 2 . 1 2 . . . . . . 2 2 . Parts Field Recycled . | . . . . . . . . . . . . . . Retrieved Matter . | . . . . . . . . . . . . . . Parts Self-Destructed 45 | . . 12 . . . . 14 2 . 17 . . . Prevented 4 | . . . . . . . 4 . . . . . . Kills | -11 -10 -10 -8 -8 -7 -6 -6 -6 -6 -5 -5 -4 -4 ------- Run | Yrd Mat Sub Mat Sto Fac Fac Low Low Dat Pro Fac Fac Ext Combat Hostiles Destroyed 163 | . 11 15 17 17 21 13 13 1 . 12 25 18 . Melee 17 | . . . 8 . . . . . . . 7 2 . Guns 60 | . 11 1 . 10 20 2 3 . . 1 10 2 . Cannons 52 | . . 12 4 1 1 10 5 1 . 7 8 3 . AOE 28 | . . 2 1 6 . . 4 . . 4 . 11 . Classes Destroyed 20 | 1 4 2 4 4 2 1 1 . . . . 1 . Worker 21 | . 1 . 2 3 1 2 . . . . 8 4 . Builder 8 | . . . 2 . 1 . . . . . 4 1 . Tunneler 4 | . . . . . . 1 . . . . . 3 . Hauler 15 | . 2 . 3 4 . . 1 . . . 3 2 . Recycler 6 | 1 . . 2 1 . . . . . . 1 1 . Mechanic 1 | . . . . 1 . . . . . . . . . Operator 2 | . . . 1 . 1 . . . . . . . . Watcher 3 | . . . 1 . . 1 . . . . 1 . . Swarmer 51 | . 6 4 8 3 7 . 7 . . 3 . 13 . Cutter 2 | . . . . . . . . . . . . 2 . Grunt 51 | . 5 2 6 7 7 9 4 . . 4 7 . . Brawler 3 | . . . . 1 . 1 . . . 1 . . . Duelist 6 | . . . . 1 1 1 . . . 2 1 . . Protector 2 | . . . . 2 . . . . . . . . . Sentry 13 | . . 1 2 3 2 1 1 1 . 1 1 . . Hunter 9 | . . . 1 . . . . . . . 6 2 . Programmer 15 | . . . . . 3 1 . . . . 10 1 . Heavy 1 | . . . . . 1 . . . . . . . . Behemoth 2 | . . . . . . . 1 . . 1 . . . Subdweller 8 | . . 8 . . . . . . . . . . . Best Kill Streak 15 | 1 4 4 5 10 6 3 4 1 . 5 9 15 . Combat Bots Only 9 | . 4 4 4 8 6 3 4 1 . 5 3 9 . Max Kills in Single Turn 6 | 1 2 1 1 6 1 1 4 1 . 1 1 5 . Gunslinging 1 | . 1 . . . . . . . . . . . . Exploded 5 | . . 1 1 5 . . 4 . . 1 . 4 . Melee 1 | . . . 1 . . . . . . . 1 1 . Uniques/NPCs Destroyed . | . . . . . . . . . . . . . . Combat | -11 -10 -10 -8 -8 -7 -6 -6 -6 -6 -5 -5 -4 -4 -------- Run | Yrd Mat Sub Mat Sto Fac Fac Low Low Dat Pro Fac Fac Ext Hostile Shots Fired 1608 | . 50 97 147 74 158 85 181 24 . 126 437 215 14 Missed 459 | . 13 30 27 13 44 34 59 10 . 34 108 85 2 Damage Taken 19031 | . 326 1384 1602 1118 1489 1252 1591 68 . 1828 5575 2598 200 Core 3355 | . 45 187 259 111 155 124 143 8 . 235 938 1050 100 Absorbed by Shields 758 | . . . . . . . 325 32 . 130 271 . . Redirected to Shielding 105 | . . . . . . . . . . . 105 . . Ignored by Resistances 126 | . . . . . . . 69 . . . . . 57 Regen/Repaired (Parts) 116 | . . . . 116 . . . . . . . . . Core Remaining (%) 43 | 100 . 7 . 32 77 . . . . 40 6 . . Volleys Fired 577 | 2 52 81 33 54 78 46 44 2 . 50 102 26 7 Largest 3 | 2 2 2 2 2 2 3 3 2 . 2 3 2 1 Hottest 213 | 40 40 84 110 69 92 165 213 108 . 108 170 122 61 Shots Fired 1039 | 4 104 146 41 104 126 95 82 4 . 81 212 33 7 Gun 502 | 4 104 8 . 94 113 28 29 . . 3 107 12 . Cannon 481 | . . 123 39 7 13 67 37 4 . 69 105 10 7 Launcher 56 | . . 15 2 3 . . 16 . . 9 . 11 . Special . | . . . . . . . . . . . . . . Kinetic 805 | 4 104 123 38 101 101 67 37 4 . 72 125 22 7 Thermal 170 | . . . 1 . 25 28 29 . . . 87 . . Explosive 39 | . . 15 . 3 . . 1 . . 9 . 11 . Electromagnetic 25 | . . 8 2 . . . 15 . . . . . . Robot Hit Streak 27 | 4 8 13 11 17 27 6 16 5 . 7 10 12 3 Robot Miss Streak 5 | . 5 2 2 3 2 5 4 1 . 3 3 3 3 Penetration Max 1 | . . . . . . . . . . 1 1 1 . Secondary Targets 5 | . 3 . . 2 . . . . . . . . . Max Gunslinging Chain 1 | . 1 . . 1 . . . . . . . . . Shots Hit Robots 717 | 4 63 58 61 73 101 55 50 2 . 47 171 29 3 Core Hits 360 | 2 27 23 16 40 57 37 28 1 . 22 69 37 1 Critical Kills 8 | . . . 2 . . . . . . . 5 1 . Critical Parts Destroyed 22 | . 1 . 5 1 . . 1 . . . 13 1 . Critical Strikes 55 | . 1 1 7 2 . 5 3 . . 2 28 4 2 Burn 4 | . . . . . . 3 1 . . . . . . Destroy 22 | . 1 . . 1 . . . . . . 18 2 . Blast 9 | . . 1 . 1 . 2 . . . 2 . 1 2 Smash 9 | . . . 7 . . . 2 . . . . . . Sever 11 | . . . . . . . . . . . 10 1 . Melee Attacks 171 | . . 12 59 14 . 1 16 . . . 56 13 . Impact 102 | . . 12 59 14 . 1 16 . . . . . . Slashing 69 | . . . . . . . . . . . 56 13 . Piercing . | . . . . . . . . . . . . . . Sneak Attacks 15 | . . . 8 . . . . . . . 4 3 . Combat Hostiles . | . . . . . . . . . . . . . . Follow-up Attacks 2 | . . . . . . . . . . . 2 . . Damage Inflicted 22722 | 40 670 1192 2492 2039 2056 1433 1839 114 . 2540 5378 2837 92 Guns 6716 | 40 668 78 . 1199 1824 318 522 . . 60 1693 314 . Cannons 7519 | . . 846 607 40 232 1045 700 114 . 1704 1921 226 84 Explosions 4267 | . . 268 71 787 . 70 398 . . 776 . 1897 . Melee 4197 | . . . 1814 . . . 219 . . . 1764 400 . Ramming 23 | . 2 . . 13 . . . . . . . . 8 Kinetic 10708 | 40 668 846 607 1239 1439 1045 700 114 . 1764 1622 540 84 Thermal 3913 | . . . . . 617 388 522 . . . 1992 394 . Explosive 3537 | . . 268 . 787 . . 203 . . 776 . 1503 . Electromagnetic 344 | . . 78 71 . . . 195 . . . . . . Impact 2033 | . . . 1814 . . . 219 . . . . . . Slashing 2164 | . . . . . . . . . . . 1764 400 . Piercing . | . . . . . . . . . . . . . . Highest Corruption 28 | . . . . 4 3 1 6 6 6 28 13 3 3 Average Corruption 4 | . . . . 4 1 1 2 6 6 6 7 2 3 Corruption Purged . | . . . . . . . . . . . . . . Corruption Blocked . | . . . . . . . . . . . . . . Effects 208 | . . . . 20 14 2 36 23 4 65 40 3 1 Message Errors 53 | . . . . 5 2 . 10 6 1 20 8 . 1 Matter Fused 46 | . . . . 4 3 . 10 8 2 6 11 2 . Heat Flow Errors 31 | . . . . 4 3 1 4 2 . 12 5 . . Energy Discharges 18 | . . . . 2 2 . 1 2 . 7 3 1 . Parts Rejected 3 | . . . . . . . . . . 1 2 . . Parts Fused 2 | . . . . . 1 . . . 1 . . . . Data Loss (minor) 31 | . . . . 2 3 1 7 3 . 10 5 . . Data Loss (major) 6 | . . . . 2 . . 1 1 . 2 . . . Misfires 8 | . . . . . . . 2 . . 4 2 . . Alerts 6 | . . . . 1 . . . 1 . 3 1 . . Misdirections 3 | . . . . . . . . . . . 3 . . Weapon Failures 1 | . . . . . . . 1 . . . . . . Overload Shots . | . . . . . . . . . . . . . . Overflow Damage 1689 | . . 10 819 21 . 47 80 . . 44 345 323 . Projectiles 137 | . . . . . . . 3 . . 16 118 . . Explosions 344 | . . 10 . 21 . 47 43 . . 28 . 195 . Melee 1208 | . . . 819 . . . 34 . . . 227 128 . Knockbacks 51 | . . 4 10 1 5 7 9 . . 7 5 2 1 Impact 3 | . . . 3 . . . . . . . . . . Kinetic 44 | . . 4 7 1 3 7 8 . . 6 5 2 1 Secondary 4 | . . . . . 2 . 1 . . 1 . . . Self-Inflicted Damage 651 | . . 110 . 137 . 342 . . . . . 58 4 Shots 12 | . . 4 . 3 . 4 . . . . . 1 . Rammed 2 | . 1 . . . . . . . . . . . 1 Targets Rammed 3 | . 1 . . 1 . . . . . . . . 1 Kicked 1 | . . . . 1 . . . . . . . . . Crushed . | . . . . . . . . . . . . . . Highest Temperature 361 | . 12 . 200 245 274 62 278 225 . 266 361 60 24 Average Temperature 71 | . 6 . 67 95 81 9 70 103 . 110 69 32 15 Received Heat Transfer 4248 | . 78 234 801 351 246 276 707 16 . 633 584 322 . Effects 1 | . . . . . 1 . . . . . . . . Interference 1 | . . . . . 1 . . . . . . . . Siege Activations . | . . . . . . . . . . . . . . Robots Corrupted 1 | . . . . . . . 1 . . . . . . Combat Hostiles 1 | . . . . . . . 1 . . . . . . Parts Fried 15 | . . . 14 . . . 1 . . . . . . Impact Corruptions 31 | . . . 30 . . . 1 . . . . . . Robots Melted 1 | . . . . . . 1 . . . . . . . Combat Hostiles 1 | . . . . . . 1 . . . . . . . Parts Melted 9 | . . . . . 4 2 1 . . . 2 . . Heat Transferred 5625 | . . . . . 1400 1150 1350 . . . 1475 250 . Parts Sabotaged 4 | . . . . . . . . . . 4 . . . Parts Stolen . | . . . . . . . . . . . . . . Parts Stripped . | . . . . . . . . . . . . . . Power Chain Reactions . | . . . . . . . . . . . . . . Alert | -11 -10 -10 -8 -8 -7 -6 -6 -6 -6 -5 -5 -4 -4 ------- Run | Yrd Mat Sub Mat Sto Fac Fac Low Low Dat Pro Fac Fac Ext Peak Influence 944 | 5 229 . 257 440 348 236 . . . . 345 944 446 Initial 446 | . 3 . . 50 142 125 . . . . 72 144 446 Average 166 | 1 46 . 88 268 140 156 . . . . 185 467 439 Maximum Alert Level 3 | . 1 . 1 2 1 1 . . . . 1 3 2 Low Security (%) 61 | 100 99 . 87 13 78 70 . . . . 45 3 . Level 1 33 | . . . 12 77 21 29 . . . . 54 37 . Level 2 3 | . . . . 9 . . . . . . . 35 100 Level 3 1 | . . . . . . . . . . . . 24 . Level 4 . | . . . . . . . . . . . . . . Level 5 . | . . . . . . . . . . . . . . High Security . | . . . . . . . . . . . . . . Max Security . | . . . . . . . . . . . . . . Squads Dispatched 31 | . 2 . 2 3 8 4 . . . 1 6 5 . Investigation 4 | . 1 . 1 . 2 . . . . . . . . Extermination 9 | . . . . . 3 2 . . . . 3 1 . Reinforcement 12 | . 1 . 1 . 3 2 . . . . 3 2 . Assault 4 | . . . . 2 . . . . . 1 . 1 . Garrison 2 | . . . . 1 . . . . . . . 1 . Intercept . | . . . . . . . . . . . . . . Searches Triggered . | . . . . . . . . . . . . . . Data Miner Redirects 1 | . . . . . . . . . . . . 1 . Construction Impeded 1 | . . . . . . . . . . . 1 . . Haulers Reinforced 1 | . . . . . . . . . . . 1 . . Active Scanning Responses . | . . . . . . . . . . . . . . Cargo Convoy Interrupts 1 | . . . . . 1 . . . . . . . . Stealth | -11 -10 -10 -8 -8 -7 -6 -6 -6 -6 -5 -5 -4 -4 --------- Run | Yrd Mat Sub Mat Sto Fac Fac Low Low Dat Pro Fac Fac Ext Distress Signals 10 | . . . 1 3 . . . . . . 4 2 . Communications Jammed 16 | . . . . . . 2 . . . . 14 . . Distress Signals 16 | . . . . . . 2 . . . . 14 . . Times Spotted 320 | . 25 25 25 36 25 18 20 1 . 26 60 57 2 Peak Tracking Total 20 | . 5 3 5 9 8 3 5 1 . 6 7 20 2 Tactical Retreats 42 | . 3 2 3 5 . 3 7 . . 3 10 6 . Traps | -11 -10 -10 -8 -8 -7 -6 -6 -6 -6 -5 -5 -4 -4 ------- Run | Yrd Mat Sub Mat Sto Fac Fac Low Low Dat Pro Fac Fac Ext Traps Triggered 7 | . 1 . . 1 2 2 . . . . . 1 . Indirectly . | . . . . . . . . . . . . . . Trap Hack Attempts . | . . . . . . . . . . . . . . Triggered . | . . . . . . . . . . . . . . Disarmed . | . . . . . . . . . . . . . . Reprogrammed . | . . . . . . . . . . . . . . Reused . | . . . . . . . . . . . . . . Traps Extracted . | . . . . . . . . . . . . . . Installed . | . . . . . . . . . . . . . . Triggered 1 | . . . . . 1 . . . . . . . . Machines | -11 -10 -10 -8 -8 -7 -6 -6 -6 -6 -5 -5 -4 -4 ---------- Run | Yrd Mat Sub Mat Sto Fac Fac Low Low Dat Pro Fac Fac Ext Machines Disabled 18 | . . 1 1 1 . 6 . . . 1 . 8 . Max in Single Turn 4 | . . 1 1 1 . 3 . . . . . 4 . Garrison Access 2 | . . . . 1 . . . . . . 1 . . Machines Repaired . | . . . . . . . . . . . . . . Machines Dismantled . | . . . . . . . . . . . . . . Machines Sabotaged . | . . . . . . . . . . . . . . Overloaded Fab Kills . | . . . . . . . . . . . . . . Hacking | -11 -10 -10 -8 -8 -7 -6 -6 -6 -6 -5 -5 -4 -4 --------- Run | Yrd Mat Sub Mat Sto Fac Fac Low Low Dat Pro Fac Fac Ext Machines Accessed 28 | . 2 1 3 8 3 3 . . 4 . 2 2 . Terminals 19 | . 2 . 2 6 3 3 . . . . 1 2 . Fabricators . | . . . . . . . . . . . . . . Repair Stations 2 | . . . 1 1 . . . . . . . . . Recycling Units . | . . . . . . . . . . . . . . Scanalyzers . | . . . . . . . . . . . . . . Garrison Access 2 | . . . . 1 . . . . . . 1 . . Total Hacks 70 | . 7 1 6 12 4 4 . . 30 . 2 4 . Successful 48 | . 2 1 1 9 . 2 . . 30 . 1 2 . Failed 22 | . 5 . 5 3 4 2 . . . . 1 2 . Catastrophic 6 | . . . . . 3 1 . . . . 1 1 . Database Lockouts . | . . . . . . . . . . . . . . Manual 9 | . 3 . . . 2 1 . . . . 1 2 . Terminals 32 | . 7 . 3 9 4 4 . . . . 1 4 . Fabricators . | . . . . . . . . . . . . . . Repair Stations 5 | . . . 3 2 . . . . . . . . . Recycling Units . | . . . . . . . . . . . . . . Scanalyzers . | . . . . . . . . . . . . . . Garrison Access 2 | . . . . 1 . . . . . . 1 . . Terminal Hacks 44 | . 2 1 1 6 . 2 . . 30 . . 2 . Record 11 | . . . . . . . . . 11 . . . . Part Schematic 11 | . . . . . . . . . 11 . . . . Robot Schematic 5 | . . . . . . . . . 5 . . . . Robot Analysis 1 | . 1 . . . . . . . . . . . . Prototype ID Bank 3 | . . . . . . . . . 3 . . . . Open Door 1 | . . . . 1 . . . . . . . . . Branch Access Points 3 | . . . 1 . . 1 . . . . . 1 . Emergency Access Points 1 | . . . . . . . . . . . . 1 . Alert Level 4 | . . . . 3 . 1 . . . . . . . Locate Traps 1 | . . . . 1 . . . . . . . . . Zone Layout 2 | . 1 . . 1 . . . . . . . . . Derelict Proto ID Bank 1 | . . 1 . . . . . . . . . . . Fabricator Hacks . | . . . . . . . . . . . . . . Repair Station Hacks 2 | . . . . 2 . . . . . . . . . Scan Component 1 | . . . . 1 . . . . . . . . . Repair 1 | . . . . 1 . . . . . . . . . Recycling Unit Hacks . | . . . . . . . . . . . . . . Scanalyzer . | . . . . . . . . . . . . . . Garrison Access Hacks 2 | . . . . 1 . . . . . . 1 . . Seal Access 2 | . . . . 1 . . . . . . 1 . . Unauthorized Hacks . | . . . . . . . . . . . . . . Terminals . | . . . . . . . . . . . . . . Fabricators . | . . . . . . . . . . . . . . Repair Stations . | . . . . . . . . . . . . . . Recycling Units . | . . . . . . . . . . . . . . Scanalyzers . | . . . . . . . . . . . . . . Garrison Access . | . . . . . . . . . . . . . . Data Cores Recovered . | . . . . . . . . . . . . . . Used . | . . . . . . . . . . . . . . Hacking Detections 18 | . 2 . 3 4 3 3 . . . . 1 2 . Full Trace Events 3 | . . . 1 1 1 . . . . . . . . Feedback Events . | . . . . . . . . . . . . . . Feedback Blocked . | . . . . . . . . . . . . . . Robot Schematics Acquired 5 | . . . . . . . . . 5 . . . . Robots Built . | . . . . . . . . . . . . . . Authchips . | . . . . . . . . . . . . . . Time . | . . . . . . . . . . . . . . Total Robot Build Rating . | . . . . . . . . . . . . . . Part Schematics Acquired 11 | . . . . . . . . . 11 . . . . Parts Built . | . . . . . . . . . . . . . . Authchips . | . . . . . . . . . . . . . . Time . | . . . . . . . . . . . . . . Total Part Build Rating . | . . . . . . . . . . . . . . Parts Repaired 1 | . . . . 1 . . . . . . . . . Time 26 | . . . . 26 . . . . . . . . . Parts Recycled . | . . . . . . . . . . . . . . Recycled Matter . | . . . . . . . . . . . . . . Retrieved Matter . | . . . . . . . . . . . . . . Retrieved Components . | . . . . . . . . . . . . . . Parts Scanalyzed . | . . . . . . . . . . . . . . Part Schematics Acquired . | . . . . . . . . . . . . . . Parts Damaged . | . . . . . . . . . . . . . . Bothacking | -11 -10 -10 -8 -8 -7 -6 -6 -6 -6 -5 -5 -4 -4 ------------ Run | Yrd Mat Sub Mat Sto Fac Fac Low Low Dat Pro Fac Fac Ext Used RIF Installer . | . . . . . . . . . . . . . . Robots Hacked . | . . . . . . . . . . . . . . Non-combat . | . . . . . . . . . . . . . . Combat . | . . . . . . . . . . . . . . Robot Hacks Applied . | . . . . . . . . . . . . . . Relay Couplers Released . | . . . . . . . . . . . . . . Fabnet Peak Effective % . | . . . . . . . . . . . . . . Robots Rewired . | . . . . . . . . . . . . . . Allies Hacked . | . . . . . . . . . . . . . . Hacks Repelled . | . . . . . . . . . . . . . . Allies | -11 -10 -10 -8 -8 -7 -6 -6 -6 -6 -5 -5 -4 -4 -------- Run | Yrd Mat Sub Mat Sto Fac Fac Low Low Dat Pro Fac Fac Ext Total Allies 13 | . . . . 12 . . . . . 1 . . . Largest Group 10 | . . . . 10 . . . . . 1 . . . Highest-Rated Group 173 | . . . . 173 . . . . . 96 . . . Highest-Rated Ally 96 | . . . . 31 . . . . . 96 . . . Total Orders 2 | . . . . 2 . . . . . . . . . STAY 1 | . . . . 1 . . . . . . . . . FOLLOW 1 | . . . . 1 . . . . . . . . . Ally Attacks 75 | . . . . 58 . . . . . 17 . . . Total Damage 1798 | . . . . 880 . . . . . 918 . . . Kills 16 | . . . . 9 . . . . . 7 . . . Allies Corrupted . | . . . . . . . . . . . . . . Allies Melted 1 | . . . . 1 . . . . . . . . . Intel | -11 -10 -10 -8 -8 -7 -6 -6 -6 -6 -5 -5 -4 -4 ------- Run | Yrd Mat Sub Mat Sto Fac Fac Low Low Dat Pro Fac Fac Ext Robot Analysis Total 1 | . 1 . . . . . . . . . . . . Derelict Logs Recovered 6 | . . 2 . . . . 1 1 . 2 . . . Drone Launches . | . . . . . . . . . . . . . . Drone Recoveries . | . . . . . . . . . . . . . . Exploration | -11 -10 -10 -8 -8 -7 -6 -6 -6 -6 -5 -5 -4 -4 ------------- Run | Yrd Mat Sub Mat Sto Fac Fac Low Low Dat Pro Fac Fac Ext Turns Passed 18735 | 69 1615 2506 1528 1739 1292 1513 1974 1111 214 2948 1692 493 41 Spaces Moved 8546 | 40 873 1394 512 608 573 589 742 483 93 1195 701 700 43 Core 403 | 11 . 25 . . . . . . . 165 67 92 43 Treads 5825 | 29 873 1369 371 . 176 589 742 483 93 945 155 . . Legs 1477 | . . . 141 608 397 . . . . 85 246 . . Wheels 90 | . . . . . . . . . . . 90 . . Hover 439 | . . . . . . . . . . . 143 296 . Flight 312 | . . . . . . . . . . . . 312 . Fastest Speed 31 | 50 160 150 160 120 120 160 225 228 228 50 50 31 50 Average Speed 175 | 129 160 159 214 181 181 220 227 228 228 207 141 46 50 Slowest Speed 1950 | 160 160 160 320 270 232 236 228 228 228 1950 1950 100 50 Overloaded Moves 18 | . . . . . . . . . . . . 18 . Propulsion Burnouts . | . . . . . . . . . . . . . . Robots Hopped 2 | . . . . . . . . . . . . 2 . Cave-ins Triggered . | . . . . . . . . . . . . . . Exploration Rate (%) 45 | 4 96 69 30 67 20 16 69 56 69 97 15 24 9 Regions Visited 13 Branch Regions 7 Pre-discovered Areas 3 | . . 1 . 1 . . . . 1 . . . . Known Exits Taken 5 | . . . 1 . . 1 . . . 1 1 1 . Unknown Exits Taken 8 | 1 1 1 . 1 1 . 1 1 1 . . . . Scrap Searched 7 | . . 4 . . . . 2 1 . . . . . Spaces Dug 39 | . . 2 1 7 . 3 10 . . 1 11 4 . Terrain Destroyed 523 | . . 102 3 33 1 93 29 . . 81 27 149 5 Melee 35 | . . 2 . 7 . 1 10 . . . 11 4 . Projectile 72 | . . 1 3 3 1 14 11 . . 15 16 3 5 AOE 416 | . . 99 . 23 . 78 8 . . 66 . 142 . Terrain Rammed . | . . . . . . . . . . . . . . Walls Destroyed . | . . . . . . . . . . . . . . Machines Disabled . | . . . . . . . . . . . . . . Actions | -11 -10 -10 -8 -8 -7 -6 -6 -6 -6 -5 -5 -4 -4 --------- Run | Yrd Mat Sub Mat Sto Fac Fac Low Low Dat Pro Fac Fac Ext Total 11031 | 54 1002 1515 828 1159 744 709 917 489 96 1570 1086 806 56 Wait 1151 | . 49 5 178 400 29 24 77 3 . 276 102 8 . Move 8529 | 39 872 1393 511 607 572 588 741 482 92 1194 700 695 43 Hop 2 | . . . . . . . . . . . . 2 . Pick Up 205 | 8 16 6 26 26 21 11 14 1 . 27 37 12 . Fast Attach 92 | . 1 1 7 10 4 8 2 . 2 6 30 21 . Attach 118 | 5 1 7 5 8 12 6 11 . . 11 37 11 4 Detach 11 | . . . . . . . . . . 2 3 4 2 Swap 57 | . 3 3 5 14 9 7 5 . . 2 6 3 . Drop 117 | . 7 6 4 25 19 18 7 1 2 2 15 11 . Fire 577 | 2 52 81 33 54 78 46 44 2 . 50 102 26 7 Melee 169 | . . 12 59 14 . 1 16 . . . 54 13 . Ram . | . . . . . . . . . . . . . . Kick 1 | . . . . 1 . . . . . . . . . Crush 1 | . 1 . . . . . . . . . . . . Escape Stasis . | . . . . . . . . . . . . . . Rewire . | . . . . . . . . . . . . . . Trap . | . . . . . . . . . . . . . . Miscellaneous 1 | . . 1 . . . . . . . . . . . Route ------- -11/Scrapyard -10/Materials (discovered 6 exits: [*Mat x3] / [*Min x2] / *Sub) -10/Subcaves (discovered 3 exits: *Mat x2 / [*Rec]) -8/Materials (discovered 2 exits: *Sto x2) -8/Storage -7/Factory (discovered 2 exits: *Fac x2) -6/Factory (discovered 2 exits: *Low x2) -6/Lower Caves -6/Lower Caves -6/Data Miner -5/Proximity Caves -5/Factory (discovered 2 exits: *Fac x2) -4/Factory (discovered 6 exits: [*Res] / Upp x2 / *Ext x2 / Arm) -4/Extension History --------- Turn | Location | Event 2 | -11/Scrapyard | Met Revision 17 15 | -11/Scrapyard | Discovered new exit (range 16) 70 | -11/Scrapyard | Entered Materials 313 | -10/Materials | Build established: Mutant 355 | -10/Materials | Discovered new exit (range 3) 532 | -10/Materials | Discovered new exit (range 12) 553 | -10/Materials | Discovered new exit (range 15) 965 | -10/Materials | Discovered new exit (range 16) 1155 | -10/Materials | Discovered new exit (range 10) 1661 | -10/Materials | Discovered new exit (range 16) 1685 | -10/Materials | Entered Subcaves 1700 | -10/Subcaves | Learned location of Mines (-10) 1737 | -10/Subcaves | Shifting Twisted Machinery released Multitool 1818 | -10/Subcaves | Shifting Twisted Machinery released Flamer 2019 | -10/Subcaves | Discovered new exit (range 11) 2028 | -10/Subcaves | Discovered new exit (range 10) 2063 | -10/Subcaves | Disturbed a concealed Subdweller 2066 | -10/Subcaves | Core integrity fell below 50% 2336 | -10/Subcaves | Shifting Twisted Machinery released Spk. Treads 2353 | -10/Subcaves | Shifting Twisted Machinery released Sub. Shrapnel Launcher 2926 | -10/Subcaves | Discovered new exit (range 14) 3130 | -10/Subcaves | Shifting Twisted Machinery released Sub. Power Source 3230 | -10/Subcaves | Core integrity fell below 20% 3313 | -10/Subcaves | Lost 4 parts (1p2n1u) 3554 | -10/Subcaves | Learned 2 Materials zone layouts 3777 | -10/Subcaves | Visited 4L-MR0's lab 3791 | -10/Subcaves | Found Arachnoskeleton 3845 | -10/Subcaves | A swath of the cavern ceiling suddenly collapsed 4191 | -10/Subcaves | Entered Materials 4191 | -8/Materials | Evolved 4 slots: Propulsion x2, Utility x2 4612 | -8/Materials | Build established: Scavenger-Mutant 4892 | -8/Materials | Identified exit to Storage 5220 | -8/Materials | Attached Arachnoskeleton, gained temporary slots: Propulsion x3 5265 | -8/Materials | Lost 6 parts (1p3n2w) 5499 | -8/Materials | Build established: Mutant 5719 | -8/Materials | Entered Storage 5835 | -8/Storage | Core integrity fell below 50% 6030 | -8/Storage | Met a pair of Derelict thieves 6181 | -8/Storage | Destroyed 8 combat bots 6253 | -8/Storage | Assisted by bots powering up and referring to "LRC-V3" 6340 | -8/Storage | Garrison activated, responded to threat 6374 | -8/Storage | Lost 6 allies 6776 | -8/Storage | Build established: Scavenger-Mutant 7066 | -8/Storage | Learned location of Armory (-4) 7103 | -8/Storage | Repaired Lgt. Treads 7390 | -8/Storage | Discovered new exit (range 16) 7403 | -8/Storage | Build established: Mutant 7458 | -8/Storage | Entered Factory 7458 | -7/Factory | Evolved 2 slots: Power x1, Utility x1 7762 | -7/Factory | Build established: Scavenger-Mutant 8426 | -7/Factory | Lost 3 parts (1p2u) 8441 | -7/Factory | Build established: Mutant 8510 | -7/Factory | Discovered new exit (range 7) 8571 | -7/Factory | Cargo convoy interrupted 8650 | -7/Factory | Discovered new exit (range 16) 8750 | -7/Factory | Entered another Factory area 8750 | -6/Factory | Evolved 2 slots: Utility x1, Weapon x1 9324 | -6/Factory | Build established: Scavenger-Tank 9452 | -6/Factory | Identified exit to Lower Caves 9731 | -6/Factory | Build established: Tank 10179 | -6/Factory | Build established: Mutant 10263 | -6/Factory | Entered Lower Caves 10328 | -6/Lower Caves | Spotted B-75 Beast 11035 | -6/Lower Caves | Destroyed B-75 Beast 11345 | -6/Lower Caves | Lost 3 parts (1p1n1u) 11601 | -6/Lower Caves | Build established: Scavenger-Tank 11742 | -6/Lower Caves | Encountered a Warlord checkpoint 12175 | -6/Lower Caves | Discovered new exit (range 6) 12177 | -6/Lower Caves | Attracted the attention of an 0b10 checkpoint 12212 | -6/Lower Caves | Learned 8 Factory zone layouts 12237 | -6/Lower Caves | Entered another Lower Caves area 12244 | -6/Lower Caves | Learned Factory stockpile data 12425 | -6/Lower Caves | Encountered a Warlord checkpoint 12773 | -6/Lower Caves | Attracted the attention of an 0b10 checkpoint 12799 | -6/Lower Caves | Discovered new exit (range 9) 13348 | -6/Lower Caves | Entered Data Miner 13349 | -6/Data Miner | Discovered new exit (range 6) 13393 | -6/Data Miner | Met Data Miner 13436 | -6/Data Miner | Learned location of Section 7 (-3) 13436 | -6/Data Miner | Acquired the access code to Warlord's prototype stash 13473 | -6/Data Miner | Received God Mode back door access code from Data Miner 13562 | -6/Data Miner | Entered Proximity Caves 13588 | -5/Proximity Caves | Identified exit to Factory 13852 | -5/Proximity Caves | Spotted B-75 Beast 13887 | -5/Proximity Caves | Destroyed B-75 Beast 13915 | -5/Proximity Caves | Lost 5 parts (2p2n1u) 13990 | -5/Proximity Caves | Escorted by Enhanced Grunt 14302 | -5/Proximity Caves | Build established: Tank 14492 | -5/Proximity Caves | Learned 4 Factory zone layouts 15310 | -5/Proximity Caves | Attracted the attention of an 0b10 outpost 15397 | -5/Proximity Caves | Lost 5 parts (1n2u2w) 15449 | -5/Proximity Caves | Released all parts (2) 15465 | -5/Proximity Caves | Core integrity fell below 50% 15697 | -5/Proximity Caves | Build established: Mutant 16507 | -5/Proximity Caves | System corruption reached 10% 16510 | -5/Proximity Caves | Entered Factory 16510 | -5/Factory | Evolved 2 slots: Utility x2 16511 | -5/Factory | Identified exit to Factory 16820 | -5/Factory | Build established: Scavenger-Mutant 17082 | -5/Factory | Lost 7 parts (1p3n3w) 17368 | -5/Factory | Lost 4 parts (1n3u) 17436 | -5/Factory | Lost 5 parts (1n4u) 17565 | -5/Factory | Core integrity fell below 50% 17567 | -5/Factory | Released all parts (5) 17598 | -5/Factory | Lost 16 parts (2p4n6u4w) 17626 | -5/Factory | System corruption reached 10% 17794 | -5/Factory | Core integrity fell below 20% 18157 | -5/Factory | Discovered exit to Factory (range 6) 18202 | -5/Factory | Entered another Factory area 18202 | -4/Factory | Evolved 2 slots: Propulsion x2 18262 | -4/Factory | Lost 5 parts (1p3n1u) 18490 | -4/Factory | First assault squad dispatched 18550 | -4/Factory | Identified exit to Upper Caves 18550 | -4/Factory | Identified exit to Extension 18550 | -4/Factory | Identified exit to Armory 18558 | -4/Factory | Lost 3 parts (1p2u) 18594 | -4/Factory | Discovered new exit (range 15) 18616 | -4/Factory | Destroyed 9 combat bots 18641 | -4/Factory | Garrison activated, responded to threat 18645 | -4/Factory | Released all parts (12) 18650 | -4/Factory | Spotted B-86 Titan 18661 | -4/Factory | Core integrity fell below 50% 18664 | -4/Factory | Lost 9 parts (1p5n1u2w) 18666 | -4/Factory | Incoming assault squad redirected 18673 | -4/Factory | Core integrity fell below 20% 18695 | -4/Factory | Entered Extension 18736 | -4/Extension | Core destroyed Last Messages --------------- 18686_ K-01 Serf collects debris. 18690_ Imp. Antigrav System destroyed. 18694_ K-01 Serf collects debris. LOCATION=EXTENSION GOAL=ESCAPE 18701_ Imp. Antigrav System destroyed. 18701_ Penetrated by Slug. 18706_ Slug penetrates Wall. 18707_ Penetrated by Slug. 18707_ H-77 Assassin Coil Gun blasted off. 18709_ H-77 Assassin knocked back. 18711_ Penetrated by Slug. 18711_ K-01 Serf enters Transfer Station. 18711_ H-77 Assassin suffers critical hit (Blast). 18714_ Penetrated by Slug. 18716_ ICF3IJFMX6EX GR EWO|PN6 18720_ Mic. Nuclear Core destroyed. 18727_ A-15 Conveyor enters Transfer Station. 18736_ Slammed into T-07 Excavator. Map ----- +----------------------------------------------------+ | ????????????????????????????????????????????????? | | %????????????????????????????????????????????????? | | [????????????????????????????????????????????????? | | ????????????????????????????????????????????????? | | ????????????????????????????????????????????????? | | ????????????????????????????????????????????????? | | #???????????????????????????????????????????????? | | #???????????????????????????????????????????????? | | #???????????????????????????????????????????????? | | #???????????????????????????????????????????????? | | #???????????????????????????????????????????????? | | ##??????????????????????????????????????????????? | | "#??????????????????????????????????????????????? | | "???????????????????????????????????????????????? | | "???????????????????????????????????????????????? | | #???????????????????????????????????????????????? | | #???????????????????????????????????????????????? | | #???????????????????????????????????????????????? | | #???????????????????????????????????????????????? | | #####???????????????????????????????????????????? | | "" #???????????????????????????????????????????? | | " ###################################?????????? | | R?????????? | | ????????? | | ????????? | | @tk kR????????? | | ????????? | | ##################################??????????? | | #???????????????????????????????????????????? | | "###???????????????????????????????????????????? | | "#?????????????????????????????????????????????? | | """#?????????????????????????????????????????????? | | ####?????????????????????????????????????????????? | | ?????????????????????????????????????????????????? | | ?????????????????????????????????????????????????? | | | | | | | | | | | | | | | | | | | | | | | | | | | | | | | +----------------------------------------------------+ Best States ------------- Heat Dissipation 75 Coolant Potential 65 Energy Generation 34 Energy Capacity 550 Matter Stores 300 Matter Capacity 300 Sight Range 16 Robot Scan Range 15 Terrain Scan Density 10 Jamming Range 14 Power Amplification 30 Additional Mass Support 9 Armor Coverage 800 Resistance: KI 25 Resistance: TH 15 Resistance: EM 20 Propulsion Shielding 66 Evasion (%) 63 Targeting Accuracy 8 Target Analysis 6 Recoil Reduction 4 Offensive Hacking 24 Defensive Hacking 14 Item Schematics ----------------- Combat Drone Bay | -6/Data Miner | Free Lgt. Regenerative Plating | -6/Data Miner | Free Cld. Gravmag System | -6/Data Miner | Free Imp. Energy Well | -6/Data Miner | Free Tesla Bomb Launcher | -6/Data Miner | Free Myomer Leg | -6/Data Miner | Free Adv. Thermal Shield | -6/Data Miner | Free Dispersion Rifle | -6/Data Miner | Free Arm. Medium Treads | -6/Data Miner | Free Adv. Particle Charger | -6/Data Miner | Free Adv. Recalibrator | -6/Data Miner | Free Robot Schematics ------------------ B-60 Warrior | -6/Data Miner | Free B-48 Gladiator | -6/Data Miner | Free G-50 Soldier | -6/Data Miner | Free A-15 Conveyor | -6/Data Miner | Free H-66 Slayer | -6/Data Miner | Free Fabricated ------------ Nothing Alien Tech Used ----------------- None Achievements -------------- None Challenges ------------ None Game ------ Seed NovaUtilitySuperbattery Manual? 0 Play Time 01:41:16 Cumulative 160.7 hours Start 2024.03.09 @ 18:28:43 End 2024.03.10 @ 09:48:41 Sessions 3 Manual Loads 0 Difficulty Rogue Special Mode None Game No. 172 Rogue 136 Adventurer 36 Explorer 0 Win Type - Total 9 Types 2/0/7/0/0/0/0/0/0 Lore% 56 Gallery% 80 Achievement% 68 Wizard Run 0 Options --------- Layout 0 ASCII 0 Keyboard 0 Movement Mouse Keybinds 0 Fullscreen 1 Font 18/SmallcapsGlow Map View 76x50 Zoom Use 0% Tactical HUD 1 Map Filters NONE Filters NONE Steam 1 RUN: 8b7b7cea-b324-4d04-996e-7ec7e3c2a682